bitfinex-derivatives/quotes_ETHF0:USTF0_20251126
["timestamp","ask_amount","ask_price","bid_price","bid_amount"]
[1764117990880,0.3517,2959.5,2959.4,1.57532512]
[1764117991078,0.9789,2959.5,2959.4,1.57532512]
[1764117991477,0.63226919,2959.7,2959.6,0.6651]
[1764117992168,0.00506919,2959.7,2959.6,0.6651]
[1764117992371,0.00506919,2959.7,2959.6,1.47937937]
[1764117993078,0.00506919,2959.7,2959.6,2.69301286]
[1764117993588,1.0997,2960.5,2960.4,0.6651]
[1764117993876,0.16896,2960.6,2960.5,0.6651]
[1764117994675,0.00251017,2960.7,2960.6,0.6651]
[1764117994980,0.3517,2961.5,2960.7,0.6651]
[1764117995176,0.6272,2960.8,2960.4,1.72225932]
[1764117995374,0.9789,2960.5,2960.4,1.47937937]
[1764117995974,0.98263969,2960.5,2960.4,1.47937937]
[1764117996181,0.98263969,2960.5,2960.4,0.6651]
[1764117996980,0.35543969,2960.5,2960.4,0.6651]
[1764117997677,0.98263969,2960.5,2960.4,0.6651]
[1764118000077,0.6272,2960.4,2960.3,0.00506919]
[1764118007077,0.6272,2960.4,2960.3,0.58936919]
[1764118007480,0.94563969,2960.5,2960.4,0.5843]
[1764118007679,0.00373969,2960.5,2960.4,1.39857937]
[1764118008080,0.34663969,2960.5,2960.4,1.39857937]
[1764118008983,0.5902,2960.4,2960.3,0.00506919]
[1764118009485,0.5902,2960.4,2960.3,0.58936919]
[1764118012181,0.34663969,2960.5,2960.4,0.5843]
[1764118012588,0.00373969,2960.5,2960.4,0.5843]
[1764118013683,0.34663969,2960.5,2960.4,0.5843]
[1764118014386,0.00373969,2960.5,2960.4,0.5843]
[1764118015186,0.00373969,2960.5,2960.4,1.49227995]
[1764118016185,0.34663969,2960.5,2960.4,1.49227995]
[1764118016581,0.00373969,2960.5,2960.4,1.49227995]
[1764118017289,0.00373969,2960.5,2960.4,0.5843]
[1764118018986,0.93683969,2960.5,2960.4,0.5843]
[1764118019192,0.93683969,2960.5,2960.4,1.79733505]
[1764118020087,0.93683969,2960.5,2960.4,0.5843]
[1764118020287,0.93683969,2960.5,2960.4,1.79733505]
[1764118020690,0.00373969,2960.5,2960.4,0.5843]
[1764118020893,0.00373969,2960.5,2960.4,1.79733505]
[1764118021194,0.00373969,2960.5,2960.4,0.5843]
[1764118021397,0.84363969,2960.5,2960.4,1.79779664]
[1764118022188,0.30233969,2960.5,2960.4,0.5843]
[1764118022494,0.00373969,2960.5,2960.4,0.5843]
[1764118022694,0.5413,2960.4,2960.3,2.25085027]
[1764118023096,0.5413,2960.4,2960.3,1.34014856]
[1764118027599,0.5413,2960.4,2960.3,2.25143135]
[1764118029997,0.30233969,2960.5,2960.4,0.5208]
[1764118030194,0.84363969,2960.5,2960.4,0.5208]
[1764118030804,0.5413,2960.4,2960.3,1.73063135]
[1764118031598,0.5413,2960.4,2960.3,2.25143135]
[1764118031794,0.5413,2960.4,2960.3,0.91635198]
[1764118032103,0.82813969,2960.5,2960.4,0.518]
[1764118032603,0.5258,2960.4,2960.3,2.34769041]
[1764118034595,0.5258,2960.4,2960.3,1.82969041]
[1764118034905,0.5258,2960.4,2960.3,0.00506919]
[1764118035903,0.5258,2960.4,2960.3,1.2205428]
[1764118036203,0.5258,2960.4,2960.3,0.00506919]
[1764118037902,0.5258,2960.2,2960.1,1.0865032]
[1764118038100,0.5258,2960.1,2960.0,1.0865032]
[1764118038404,0.5258,2959.9,2959.8,1.82462122]
[1764118038899,0.3114,2960.0,2959.6,0.81427937]
[1764118038900,0.5258,2959.7,2959.6,0.81934856]
[1764118039101,0.5258,2959.3,2959.2,1.82462122]
[1764118039307,0.5258,2958.9,2958.8,2.34262122]
[1764118039499,0.3114,2959.5,2958.8,3.15690059]
[1764118039804,0.5258,2959.2,2959.1,0.81427937]
[1764118040198,0.5258,2959.0,2958.9,0.52306919]
[1764118040997,0.8372,2959.0,2958.9,0.52306919]
[1764118041196,0.91058008,2959.4,2959.1,0.518]
[1764118041396,0.3114,2959.5,2959.1,0.518]
[1764118041797,0.5258,2959.2,2959.1,0.518]
[1764118046715,0.3114,2959.5,2959.1,1.33247602]
[1764118046918,0.5258,2959.2,2959.1,0.518]
[1764118048116,0.5258,2959.2,2959.1,1.33247602]
[1764118051413,0.8372,2959.5,2959.4,0.518]
[1764118051619,0.8372,2959.5,2959.4,1.33247602]
[1764118053619,0.5258,2959.3,2959.2,1.33247602]
[1764118055724,0.8372,2959.0,2958.9,0.00506919]
[1764118055936,0.5258,2958.4,2957.7,1.82462122]
[1764118056225,0.5258,2958.4,2957.6,1.99375122]
[1764118057015,0.52842687,2958.4,2958.3,0.8169268]
[1764118059225,0.52842687,2958.4,2958.3,1.3349268]
[1764118059818,0.00262687,2958.4,2958.3,2.14940282]
[1764118060014,0.00262687,2958.4,2958.3,1.3349268]
[1764118060625,0.52842687,2958.4,2958.3,1.3349268]
[1764118061025,0.52842687,2958.4,2958.3,0.8169268]
[1764118065631,0.52842687,2958.4,2958.3,1.3189268]
[1764118065830,0.52842687,2958.4,2958.3,0.8169268]
[1764118066327,0.5057,2958.2,2958.1,0.00506919]
[1764118067433,0.5057,2958.2,2958.1,0.0080039]
[1764118068028,0.5057,2957.4,2957.3,1.71446201]
[1764118068228,0.5057,2957.3,2957.2,1.31647602]
[1764118069031,0.5057,2957.3,2957.2,1.3194647]
[1764118069227,0.5057,2956.8,2956.7,1.20124815]
[1764118069432,0.2913,2957.0,2956.5,1.31647602]
[1764118069433,0.5057,2956.6,2956.5,1.31647602]
[1764118069935,0.5057,2956.6,2956.5,0.81447602]
[1764118070331,0.5057,2956.6,2956.5,0.81884638]
[1764118072536,0.5057,2956.6,2956.5,1.32084638]
[1764118072743,0.00506919,2956.8,2956.7,0.502]
[1764118072935,0.00506919,2956.8,2956.7,1.31647602]
[1764118073346,0.51076919,2956.8,2956.7,1.31647602]
[1764118074039,0.00506919,2956.8,2956.7,1.31647602]
[1764118074637,0.51076919,2956.8,2956.7,1.31647602]
[1764118077835,0.51076919,2956.8,2956.7,0.502]
[1764118078040,0.51076919,2956.8,2956.7,1.31647602]
[1764118081845,0.51076919,2956.8,2956.7,0.81447602]
[1764118082042,0.16918,2956.7,2956.5,0.00437036]
[1764118082352,0.4816,2956.4,2956.3,0.00506919]
[1764118083252,0.4816,2956.4,2956.3,0.45273413]
[1764118083449,0.4816,2956.4,2956.3,1.26721015]
[1764118083957,0.4816,2956.4,2956.3,0.82201015]
[1764118087262,0.4816,2956.4,2956.3,1.26721015]
[1764118090664,0.4816,2956.4,2956.3,0.82201015]
[1764118091553,0.6508,2956.4,2956.3,0.82201015]
[1764118093364,0.6508,2956.4,2956.3,0.00753413]
[1764118095167,0.7577,2956.0,2955.9,0.81447602]
[1764118095759,0.47,2956.0,2955.9,1.26297602]
[1764118096067,0.47341059,2956.0,2955.9,1.26629423]
[1764118096271,0.76111059,2956.0,2955.9,1.26629423]
[1764118096768,0.76111059,2956.0,2955.9,0.81779423]
[1764118097265,0.47341059,2956.0,2955.9,1.26629423]
[1764118097466,0.76111059,2956.0,2955.9,1.26629423]
[1764118097966,0.47341059,2956.0,2955.9,1.26629423]
[1764118098370,0.00341059,2956.0,2955.9,2.17727967]
[1764118098564,0.00341059,2956.0,2955.9,1.26629423]
[1764118099464,0.47,2956.7,2956.0,0.2883]
[1764118099771,0.47,2956.3,2956.2,0.4485]
[1764118099964,0.47,2956.3,2956.2,1.26297602]
[1764118100469,0.47336591,2956.3,2956.2,1.26297602]
[1764118101865,0.00336591,2956.3,2956.2,2.98889965]
[1764118102173,0.00336591,2956.3,2956.2,1.26297602]
[1764118102371,0.47336591,2956.3,2956.2,2.17453453]
[1764118102761,0.47336591,2956.3,2956.2,1.26297602]
[1764118103364,0.00336591,2956.3,2956.2,2.17453453]
[1764118103564,0.00336591,2956.3,2956.2,1.26297602]
[1764118103758,0.00336591,2956.3,2956.2,2.17453453]
[1764118104062,0.00336591,2956.3,2956.2,1.26297602]
[1764118104665,0.00336591,2956.3,2956.2,2.17453453]
[1764118104974,0.00336591,2956.3,2956.2,1.26297602]
[1764118107670,0.00336591,2956.3,2956.2,2.17453453]
[1764118108574,0.00336591,2956.3,2956.2,2.17591855]
[1764118109080,0.00336591,2956.3,2956.2,1.26436004]
[1764118109278,0.00336591,2956.3,2956.2,2.47962352]
[1764118109475,0.00336591,2956.3,2956.2,1.26436004]
[1764118110279,0.00336591,2956.3,2956.2,2.47962352]
[1764118112176,0.00336591,2956.3,2956.2,1.26436004]
[1764118115581,0.47336591,2956.3,2956.2,1.26436004]
[1764118115782,0.00336591,2956.3,2956.2,2.47962352]
[1764118116586,0.00336591,2956.3,2956.2,1.26436004]
[1764118117577,0.00336591,2956.3,2956.2,3.08898126]
[1764118117885,0.91564927,2956.8,2956.7,0.4485]
[1764118118082,0.00506919,2956.8,2956.7,2.17709324]
[1764118118986,0.00862397,2956.8,2956.7,2.17709324]
[1764118119693,0.47862397,2956.8,2956.7,2.17709324]
[1764118120285,0.47862397,2956.8,2956.7,1.26436004]
[1764118120490,0.47862397,2956.8,2956.7,0.81586004]
[1764118121389,0.47862397,2956.8,2956.6,0.9127332]
[1764118121390,0.47,2956.7,2956.6,0.9127332]
[1764118122486,0.4749,2956.6,2956.4,0.9127332]
[1764118122692,0.7425,2956.5,2956.4,0.9127332]
[1764118123585,0.7425,2956.5,2956.2,1.2169776]
[1764118123586,0.4749,2956.4,2956.3,1.3777332]
[1764118124492,0.4749,2956.4,2956.3,0.465]
[1764118126488,0.6441,2956.3,2956.2,1.2169776]
[1764118126783,0.1692,2956.3,2956.2,1.28086004]
[1764118128396,0.1692,2956.3,2956.2,2.49783764]
[1764118129789,0.6441,2956.3,2956.2,0.465]
[1764118129991,0.1692,2956.3,2956.2,0.465]
[1764118130692,0.1692,2956.3,2956.2,1.6819776]
[1764118131194,0.91158519,2956.7,2956.2,1.6819776]
[1764118131398,0.00862397,2956.8,2956.7,0.465]
[1764118132283,0.91158519,2957.4,2957.3,0.465]
[1764118132489,0.16914,2957.5,2957.4,0.465]
[1764118133391,0.17313973,2957.5,2957.4,0.465]
[1764118134795,0.00399973,2957.5,2957.4,0.465]
[1764118139293,1.08346004,2958.5,2958.2,0.465]
[1764118139294,0.4749,2958.3,2958.2,0.465]
[1764118139497,0.4749,2958.0,2957.9,0.465]
[1764118140192,0.47728759,2958.0,2957.9,0.46780453]
[1764118140500,0.74488759,2958.0,2957.9,0.46780453]
[1764118140888,0.74488759,2958.0,2957.9,0.00280453]
[1764118141800,0.91399759,2958.0,2957.9,0.00280453]
[1764118141992,0.91619759,2958.0,2957.9,0.00280453]
[1764118142204,0.91619759,2958.0,2957.9,0.49380453]
[1764118142395,0.91619759,2958.0,2957.9,0.00280453]
[1764118144100,0.91619759,2958.0,2957.9,0.49380453]
[1764118144304,0.17149759,2958.0,2957.9,0.49380453]
[1764118144798,0.64919759,2958.0,2957.9,0.49380453]
[1764118145396,0.91619759,2958.0,2957.9,0.00280453]
[1764118145901,0.64919759,2958.0,2957.9,0.49380453]
[1764118146202,0.17149759,2958.0,2957.9,0.49380453]
[1764118147595,0.00238759,2958.0,2957.9,0.49380453]
[1764118148399,0.74708759,2958.0,2957.9,0.00280453]
[1764118148996,0.74708759,2958.0,2957.9,0.49380453]
[1764118149190,0.74708759,2958.0,2957.9,0.00280453]
[1764118149401,0.00238759,2958.0,2957.9,1.30966457]
[1764118149597,0.00238759,2958.0,2957.9,0.49380453]
[1764118149903,0.48008759,2958.0,2957.9,0.49380453]
[1764118150100,0.00238759,2958.0,2957.9,0.49380453]
[1764118150504,0.48008759,2958.0,2957.9,0.49380453]
[1764118151400,0.91619759,2958.0,2957.9,0.00280453]
[1764118152293,0.4625,2957.8,2957.7,0.00506919]
[1764118152503,0.4625,2957.8,2957.0,1.48519907]
[1764118152504,0.4625,2957.1,2957.0,0.90934634]
[1764118152807,0.4625,2957.5,2957.4,0.4789]
[1764118153099,0.16913,2957.6,2957.5,0.7746]
[1764118153408,0.16913,2957.6,2957.5,0.77721196]
[1764118157514,0.46488759,2958.0,2957.9,0.4789]
[1764118158007,0.00238759,2958.0,2957.9,0.4789]
[1764118158311,0.46488759,2958.0,2957.9,0.4789]
[1764118158509,0.46488759,2958.0,2957.5,1.2076583]
[1764118158510,0.74648759,2958.0,2957.5,0.29831196]
[1764118158909,0.74648759,2958.0,2957.9,0.4789]
[1764118159904,0.4625,2957.6,2957.5,0.9119583]
[1764118160104,0.4625,2957.6,2957.5,0.00261196]
[1764118160809,0.4625,2957.6,2957.5,0.48151196]
[1764118161310,0.4625,2957.6,2957.5,1.3908583]
[1764118162319,1.08070519,2957.9,2957.5,1.6145583]
[1764118162518,1.37408519,2957.8,2957.7,0.4789]
[1764118163114,0.4625,2957.8,2957.7,0.4789]
[1764118163613,0.4625,2957.6,2957.5,0.70521196]
[1764118164017,1.37377944,2957.8,2957.7,0.4789]
[1764118164222,0.4625,2957.6,2957.5,0.00261196]
[1764118165530,1.08051251,2957.8,2957.7,0.4789]
[1764118165832,0.16912,2957.8,2957.7,0.4789]
[1764118167137,0.00238759,2958.0,2957.6,0.90934634]
[1764118167138,0.9137801,2958.0,2957.9,0.4789]
[1764118169132,0.00238759,2958.0,2957.9,0.4789]
[1764118170533,0.00238759,2958.0,2957.9,1.29397368]
[1764118171144,0.74648759,2958.0,2957.9,0.4789]
[1764118172047,0.00238759,2958.0,2957.9,0.4789]
[1764118172239,0.46488759,2958.0,2957.9,0.4789]
[1764118172438,0.74648759,2958.0,2957.9,0.4789]
[1764118172644,0.4625,2957.9,2957.8,1.38824634]
[1764118173048,0.4625,2957.9,2957.8,0.4789]
[1764118175744,0.00238759,2958.0,2957.9,0.4789]
[1764118175946,0.00238759,2958.0,2957.9,1.29397368]
[1764118179952,0.00238759,2958.0,2957.9,2.20332002]
[1764118181251,0.46488759,2958.0,2957.9,1.38824634]
[1764118181550,0.00238759,2958.0,2957.9,1.38824634]
[1764118183746,0.48228759,2958.0,2957.9,0.4789]
[1764118184542,0.4799,2957.9,2957.8,1.37334634]
[1764118186154,0.4799,2957.7,2957.6,2.03107275]
[1764118186354,0.4799,2957.7,2957.6,1.67999907]
[1764118186651,0.00238759,2958.0,2957.9,0.464]
[1764118186850,0.48228759,2958.0,2957.9,0.464]
[1764118189750,0.00238759,2958.0,2957.9,0.464]
[1764118191761,0.00238759,2958.0,2957.9,1.37621157]
[1764118195248,0.00238759,2958.0,2957.9,0.464]
[1764118196261,0.00238759,2958.0,2957.9,1.67999907]
[1764118197254,0.00506919,2958.2,2958.1,0.464]
[1764118197458,0.00506919,2958.2,2958.1,1.37682159]
[1764118197653,0.00506919,2958.2,2958.1,0.464]
[1764118197956,1.68679251,2958.5,2958.1,1.21709546]
[1764118198161,0.4799,2958.4,2958.3,0.464]
[1764118198457,0.91139251,2958.5,2958.4,0.464]
[1764118198651,0.4799,2958.4,2958.3,0.91281137]
[1764118198856,0.4799,2958.3,2958.2,1.37681137]
[1764118200563,0.0036697,2958.4,2958.3,0.464]
[1764118200762,1.81771622,2958.9,2958.3,0.464]
[1764118200763,0.78722745,2958.8,2958.7,0.464]
[1764118200954,0.16904,2959.2,2959.1,0.464]
[1764118201555,1.21181081,2959.6,2959.5,0.4576]
[1764118201852,1.21181081,2959.6,2959.0,1.08427368]
[1764118201853,0.459,2959.4,2959.3,0.46266919]
[1764118202863,1.67081081,2959.5,2959.4,0.4576]
[1764118203370,0.459,2959.5,2959.4,0.4576]
[1764118203562,1.21429423,2959.6,2959.5,0.7426]
[1764118204761,1.21429423,2959.6,2959.3,0.00506919]
[1764118204762,0.62803,2959.4,2959.3,0.00506919]
[1764118204969,1.837872,2959.4,2959.3,0.00506919]
[1764118207376,2.65294568,2959.4,2959.3,0.00506919]
[1764118207558,0.16906,2958.9,2958.1,5.5632874]
[1764118207758,0.98413368,2958.9,2958.1,4.65107368]
[1764118207954,0.16906,2958.8,2958.1,0.81507368]
[1764118208469,0.16906,2958.8,2958.2,0.00506919]
[1764118216269,0.16906,2958.8,2958.2,0.91728291]
[1764118216466,0.4843,2958.3,2958.2,0.91728291]
[1764118216671,0.65339,2958.3,2958.2,0.00506919]
[1764118237985,0.4843,2957.7,2957.6,0.91221372]
[1764118238179,0.4843,2957.7,2957.6,0.4528]
[1764118238783,0.4843,2957.7,2957.6,1.36501372]
[1764118239486,0.16912,2957.8,2957.7,0.4528]
[1764118239686,0.65342,2957.8,2957.7,0.4528]
[1764118240491,0.00506919,2957.9,2957.8,0.4528]
[1764118242488,0.00506919,2957.9,2957.8,1.36501372]
[1764118244088,0.1691,2958.2,2957.8,1.36501372]
[1764118244292,1.66338379,2958.6,2958.5,0.4616]
[1764118244492,0.4543,2958.6,2958.5,0.4616]
[1764118245386,0.4543,2958.3,2958.2,1.37381372]
[1764118245589,0.7234,2958.5,2958.4,0.4616]
[1764118245887,0.16908,2958.6,2958.5,0.4616]
[1764118246689,0.62338,2958.6,2958.5,0.4616]
[1764118247088,0.62338,2958.6,2958.5,0.7445]
[1764118249594,0.62338,2958.6,2958.5,0.4616]
[1764118252691,0.16908,2958.6,2958.5,0.7445]
[1764118253094,0.62338,2958.6,2958.5,0.7445]
[1764118255396,0.00506919,2958.8,2958.7,0.4616]
[1764118255598,2.39276986,2959.7,2959.5,0.4616]
[1764118255799,1.35288717,2960.4,2960.0,0.6835]
[1764118256001,0.43807,2960.5,2960.0,0.6835]
[1764118256201,0.89237,2960.5,2960.4,0.4616]
[1764118256702,0.8959667,2960.5,2960.4,0.46500384]
[1764118257607,0.8959667,2960.5,2960.4,0.00340384]
[1764118261011,0.8959667,2960.5,2960.4,0.46500384]
[1764118261205,0.6268667,2960.5,2960.4,0.46500384]
[1764118261708,0.1725667,2960.5,2960.4,0.46500384]
[1764118261903,0.6200667,2960.5,2960.4,0.46500384]
[1764118262103,0.1725667,2960.5,2960.4,0.46500384]
[1764118262504,0.0035967,2960.5,2960.4,0.46500384]
[1764118263099,1.5625878,2960.5,2960.4,0.00340384]
[1764118263609,1.7315478,2960.5,2960.4,0.00340384]
[1764118264113,0.4475,2959.6,2959.5,0.4686]
[1764118264308,0.2963,2960.0,2959.5,0.4686]
[1764118264504,0.2963,2960.0,2959.5,0.7042]
[1764118265110,0.2963,2960.0,2959.5,0.71218567]
[1764118265611,0.4475,2959.6,2959.5,0.71218567]
[1764118265816,0.4475,2959.6,2959.5,0.47658567]
[1764118266207,0.2963,2960.0,2959.5,0.71218567]
[1764118266712,0.4475,2959.6,2959.5,0.71218567]
[1764118266918,0.2963,2960.0,2959.5,0.71218567]
[1764118268714,0.4475,2959.6,2959.5,0.71218567]
[1764118268908,0.4475,2959.6,2959.5,0.47658567]
[1764118271704,0.4475,2959.6,2959.5,0.00798567]
[1764118272416,0.4475,2959.6,2959.5,0.48228567]
[1764118275324,0.4475,2959.6,2959.5,0.00798567]
[1764118276019,0.4865,2959.2,2958.6,0.91221372]
[1764118276219,0.4865,2958.7,2958.6,0.4743]
[1764118277114,0.00506919,2958.9,2958.8,0.4743]
[1764118277317,0.49156919,2958.9,2958.8,0.4743]
[1764118279820,0.4865,2958.7,2958.6,0.47778353]
[1764118280023,0.4865,2958.7,2958.6,0.00348353]
[1764118280518,0.4865,2958.7,2958.6,0.47778353]
[1764118280716,0.49156919,2958.9,2958.8,0.4743]
[1764118280907,0.49156919,2958.9,2958.6,0.00348353]
[1764118280908,0.4865,2958.7,2958.6,0.00348353]
[1764118281314,0.49156919,2958.9,2958.8,0.4743]
[1764118281818,0.49156919,2958.9,2958.6,0.47778353]
[1764118281819,0.4865,2958.7,2958.6,0.47778353]
[1764118284121,0.00506919,2958.9,2958.8,0.4743]
[1764118284713,0.49156919,2958.9,2958.8,0.4743]
[1764118284918,0.4865,2958.7,2958.6,0.00348353]
[1764118285121,0.00506919,2958.9,2958.8,0.4743]
[1764118288422,0.49156919,2958.9,2958.8,0.4743]
[1764118288625,0.4865,2958.7,2958.6,0.47778353]
[1764118288827,0.00506919,2958.9,2958.8,0.4743]
[1764118289930,0.4865,2958.8,2958.7,3.836]
[1764118290132,0.4865,2958.7,2958.6,0.00348353]
[1764118292529,0.92538,2958.5,2958.4,0.00506919]
[1764118292731,1.74069254,2958.5,2958.4,0.00506919]
[1764118293124,0.4865,2957.8,2957.6,0.91221372]
[1764118293328,0.4865,2957.6,2957.5,1.38651372]
[1764118293529,0.48969265,2957.6,2957.5,1.38991424]
[1764118294130,0.48969265,2957.6,2957.5,0.47770052]
[1764118294531,0.00319265,2957.6,2957.5,1.55961306]
[1764118298239,0.48969265,2957.6,2957.5,0.47770052]
[1764118298932,0.48969265,2957.6,2957.5,0.74430052]
[1764118299934,0.48969265,2957.6,2957.5,0.47770052]
[1764118301538,0.48969265,2957.6,2957.5,0.00340052]
[1764118301943,0.48969265,2957.6,2957.5,0.47800052]
[1764118304045,0.48969265,2957.6,2957.5,0.00340052]
[1764118304245,0.48969265,2957.6,2957.5,0.47800052]
[1764118305844,0.48969265,2957.6,2957.5,1.29331306]
[1764118307151,0.48969265,2957.6,2957.5,0.47800052]
[1764118310153,0.00319265,2957.6,2957.5,1.56001306]
[1764118310352,0.00319265,2957.6,2957.5,0.00340052]
[1764118310353,0.48769265,2957.6,2957.5,0.00340052]
[1764118310553,0.65682265,2957.6,2957.5,0.00340052]
[1764118311248,1.47213519,2957.6,2957.3,0.0033795]
[1764118311451,0.4845,2957.4,2957.3,0.0033795]
[1764118312359,0.4845,2957.4,2957.3,0.00628607]
[1764118314163,0.65364,2957.4,2957.3,0.00628607]
[1764118318860,0.7742,2957.0,2956.9,0.90823149]
[1764118319161,0.4845,2956.9,2956.8,0.4746]
[1764118320062,0.4845,2956.9,2956.8,0.4769945]
[1764118321257,0.65367,2956.9,2956.8,0.0023945]
[1764118321859,0.62289,2956.6,2956.5,0.90823149]
[1764118322061,0.4537,2956.2,2956.1,1.21639273]
[1764118322260,0.91,2956.5,2956.4,0.4784]
[1764118322662,0.7408,2956.5,2956.4,0.4784]
[1764118322861,1.36218962,2956.9,2956.8,0.4784]
[1764118323059,0.4537,2956.9,2956.8,0.4784]
[1764118323259,0.4537,2956.7,2956.6,1.29371254]
[1764118323962,0.2897,2957.0,2956.6,1.29371254]
[1764118325072,0.4537,2956.7,2956.6,0.4784]
[1764118327164,0.7434,2957.0,2956.9,0.4784]
[1764118327869,0.4537,2956.7,2956.6,1.29371254]
[1764118330670,0.7434,2957.0,2956.9,0.4784]
[1764118330976,0.4537,2957.0,2956.9,0.4784]
[1764118331181,0.62792919,2957.1,2957.0,0.4784]
[1764118331473,0.7348,2957.0,2956.9,0.4658]
[1764118332266,0.4626,2957.0,2956.9,0.4658]
[1764118332966,0.7348,2957.0,2956.9,0.4658]
[1764118334870,0.00506919,2957.1,2957.0,0.7439]
[1764118335280,0.00319265,2957.6,2957.5,1.55261254]
[1764118336069,0.46579265,2957.6,2957.5,0.4658]
[1764118336269,0.00319265,2957.6,2957.5,1.53591254]
[1764118341982,0.17418919,2957.8,2957.7,0.4658]
[1764118342985,0.17716205,2957.8,2957.7,0.4658]
[1764118344385,0.63976205,2957.8,2957.7,0.4658]
[1764118345581,0.4626,2957.6,2957.5,0.7206]
[1764118345981,0.4626,2957.6,2957.5,0.4658]
[1764118346171,0.4626,2957.6,2957.3,0.82038173]
[1764118346381,0.4626,2957.6,2957.5,0.4658]
[1764118346874,0.00804205,2957.8,2957.7,0.4658]
[1764118347078,0.16909,2958.4,2958.3,0.4658]
[1764118347288,0.63169,2958.4,2958.3,0.4658]
[1764118347586,0.16909,2958.4,2958.3,0.4658]
[1764118348091,0.46630115,2958.4,2958.3,0.4658]
[1764118348381,0.2722,2958.0,2957.6,3.836]
[1764118348585,0.7348,2958.0,2957.9,0.4658]
[1764118348887,0.4626,2957.8,2957.7,1.28111254]
[1764118349184,0.4626,2957.6,2957.5,0.7206]
[1764118351186,0.7348,2958.0,2957.9,0.4658]
[1764118351889,0.4626,2958.0,2957.9,0.4658]
[1764118354585,0.7348,2958.0,2957.9,0.4658]
[1764118356493,0.46630115,2958.4,2958.3,0.4658]
[1764118357386,0.00370115,2958.4,2958.3,0.4658]
[1764118358291,0.00506919,2958.6,2958.5,0.754]
[1764118359291,0.00868814,2958.6,2958.5,0.754]
[1764118359487,0.00868814,2958.6,2958.5,0.75673924]
[1764118360995,0.7348,2959.5,2959.4,0.4658]
[1764118361296,0.4626,2959.5,2959.4,0.4658]
[1764118361496,0.4686,2959.1,2959.0,0.7684]
[1764118361689,0.4686,2959.1,2959.0,0.4909]
[1764118362086,0.47131294,2959.1,2958.8,0.00506919]
[1764118362296,0.4686,2958.9,2958.8,0.49596919]
[1764118362493,0.00271294,2959.1,2959.0,0.764]
[1764118363495,0.47131294,2959.1,2959.0,0.4909]
[1764118363798,0.4686,2958.9,2958.8,0.49596919]
[1764118363993,0.47131294,2959.1,2959.0,0.4909]
[1764118364195,0.47131294,2959.1,2959.0,0.764]
[1764118365696,0.47131294,2959.1,2959.0,0.4909]
[1764118365891,0.4686,2958.9,2958.8,0.49596919]
[1764118366698,0.47131294,2959.1,2959.0,0.4909]
[1764118367491,0.47131294,2959.1,2958.9,3.836]
[1764118367492,0.7516,2959.0,2958.9,3.836]
[1764118370903,0.92065,2959.0,2958.9,3.836]
[1764118372397,1.73589103,2959.0,2958.9,3.836]
[1764118373302,0.4686,2958.9,2958.8,0.00506919]
[1764118373802,0.63766,2958.9,2958.8,0.00506919]
[1764118377307,0.63766,2958.9,2958.8,0.49596919]
[1764118378100,0.63766,2958.9,2958.8,0.00506919]
[1764118378605,0.4686,2958.3,2958.2,3.836]
[1764118378805,0.4686,2958.3,2957.9,3.836]
[1764118379112,0.4686,2958.3,2957.9,4.3269]
[1764118379113,0.4686,2958.0,2957.9,4.3269]
[1764118379811,0.7516,2958.0,2957.9,3.83893776]
[1764118380109,0.7516,2958.0,2957.9,0.00293776]
[1764118380910,0.92071,2958.0,2957.9,0.00293776]
[1764118382212,0.92071,2958.0,2957.9,0.49383776]
[1764118382408,0.92071,2958.0,2957.9,0.00293776]
[1764118382714,1.73595103,2958.0,2957.9,0.00293776]
[1764118382907,1.73595103,2958.0,2957.7,0.00506919]
[1764118382908,0.64992,2957.8,2957.7,0.00506919]
[1764118383213,0.4808,2957.1,2957.0,1.39258159]
[1764118383406,0.4808,2957.1,2957.0,0.4832]
[1764118383806,0.64995,2957.4,2957.3,0.4832]
[1764118384011,0.4808,2957.1,2957.0,0.003236]
[1764118384217,0.4808,2957.1,2957.0,0.701936]
[1764118384515,0.00506919,2957.3,2957.2,0.4832]
[1764118385108,0.48586919,2957.3,2957.0,0.003236]
[1764118385308,0.00506919,2957.3,2957.2,0.4832]
[1764118385815,0.4808,2957.1,2957.0,0.003236]
[1764118386916,0.4808,2957.1,2957.0,0.486436]
[1764118388007,0.4808,2957.1,2957.0,4.322436]
[1764118390020,0.4808,2957.1,2957.0,3.839236]
[1764118390713,0.4808,2957.1,2957.0,4.322436]
[1764118391519,0.64996,2957.1,2957.0,0.003236]
[1764118395724,0.64996,2957.1,2957.0,0.749636]
[1764118396626,0.16916,2957.1,2957.0,0.749636]
[1764118397722,0.65236,2957.1,2957.0,0.749636]
[1764118398026,0.16916,2957.1,2957.0,0.749636]
[1764118398922,0.16916,2957.1,2957.0,0.467336]
[1764118398923,0.65236,2957.1,2957.0,0.467336]
[1764118399330,0.65236,2957.1,2957.0,0.749636]
[1764118402030,0.16916,2957.1,2957.0,0.749636]
[1764118404721,0.65236,2957.1,2957.0,0.749636]
[1764118404922,0.16916,2957.1,2957.0,0.749636]
[1764118405124,0.00506919,2957.3,2957.2,0.4641]
[1764118405323,0.00506919,2957.3,2957.2,1.27934103]
[1764118406125,0.00506919,2957.3,2957.2,2.18872262]
[1764118406719,0.16911,2957.9,2957.2,2.18872262]
[1764118407133,0.65231,2957.9,2957.8,0.4641]
[1764118407631,0.16911,2957.9,2957.8,0.4641]
[1764118409330,0.65231,2957.9,2957.8,0.4641]
[1764118409526,0.65231,2957.9,2957.5,0.2823]
[1764118409829,0.4832,2957.6,2957.5,0.7464]
[1764118410435,0.65231,2957.9,2957.8,0.4641]
[1764118412838,0.4832,2957.6,2957.5,0.4641]
[1764118415338,0.7789,2957.5,2957.4,0.4641]
[1764118415728,0.4832,2957.5,2957.4,0.4641]
[1764118415929,0.65232,2957.8,2957.7,0.4641]
[1764118419239,0.4832,2957.6,2957.5,0.4641]
[1764118423442,0.4932,2957.4,2957.3,1.37532448]
[1764118423634,0.4932,2957.4,2957.3,0.4651]
[1764118424443,0.4932,2957.4,2957.3,1.37532448]
[1764118424840,0.4932,2957.4,2957.3,0.4651]
[1764118425339,0.4932,2957.2,2957.0,0.91346048]
[1764118425544,0.4932,2957.1,2957.0,0.003236]
[1764118425843,0.66236,2957.1,2957.0,0.003236]